Cogmind - Beta 12 X4 @@@ ROGUE MODE // 2022.12.02 @ 22:57:06 Player: Lunatic Blue Result: Destroyed by H-66 Slayer with Heavy Assault Rifle Performance ------------- Evolutions (5) 2500 Regions Visited (11) 2200 Robots Destroyed (66) 330 Value Destroyed (2216) 2216 Prototype IDs (12) 240 Alien Tech Used (0) 0 Bonus (2447) 2447 TOTAL SCORE: 9933 Bonus ------- High Alert Combat Kills 46 Follower Combat Kills 1491 Built Enhanced Grunts 300 A7 Reached Mainframe 300 Met R17 at Cetus 500 Friendly Fire -190 Cogmind --------- Core Integrity 0/1000 Matter 274/300 Energy 100/100 System Corruption 10% Temperature Cool (0) Movement Hovering (70) Location -5/Upper Caves Parts ------- > --- POWER (1) -------- (None) > --- PROPULSION (5) --- Gyrokinetic Inverter > --- UTILITY (8) ------ Advanced Signal Interpreter Improved Hacking Suite Improved System Shield > --- WEAPON (3) ------- (None) > --- INVENTORY (5) ---- Nuclear Pulse Thruster Advanced Heat Sink Enhanced Optical Array Advanced ECM Suite Improved Hacking Suite Peak State ------------ > --- POWER ------------ Light Fission Core > --- PROPULSION ------- Gravmag System Gravmag System Gravmag System Gravmag System Gyrokinetic Inverter > --- UTILITY ---------- Large Storage Unit Enhanced Optical Array Advanced Signal Interpreter Improved Hacking Suite Improved Hacking Suite Improved Hacking Suite Improved System Shield Improved System Shield > --- WEAPON ----------- Chainsword Lance > --- INVENTORY -------- Improved Deuterium Engine Fission Core Gravmag System Gravmag System Nuclear Pulse Thruster Nuclear Pulse Thruster Nuclear Pulse Thruster Advanced Heat Sink Enhanced Optical Array Advanced ECM Suite Improved Hacking Suite Improved System Shield Improved System Shield Smartbomb Launcher [Rating: 80] Favorites ----------- Power Cooled Ion Engine Engine Cooled Ion Engine Power Core Micro Nuclear Core Propulsion Nuclear Pulse Thruster Treads Light Treads Leg Aluminum Leg Wheel Wheel Hover Unit Gravmag System Flight Unit Nuclear Pulse Thruster Utility Large Storage Unit Device Improved Heat Sink Storage Large Storage Unit Processor Improved Signal Interpreter Hackware Hacking Suite Protection Light Armor Plating Weapon Heavy Particle Gun Energy Gun Heavy Particle Gun Ballistic Gun Enhanced Autogun Ballistic Cannon Assault Cannon Launcher Rocket Launcher Impact Weapon Heavy Hammer Slashing Weapon Chainsword Piercing Weapon Lance Build | -11 -10 -9 -8 -8 -7 -6 -6 -6 -6 -5 -5 ------- Run | Scr Mat Mat Mat Sto Fac Fac Ext Cet Arc Fac Upp Slots Evolved 10 | . . 2 2 . 2 2 . . . 2 . Power . | . . . . . . . . . . . . Propulsion 3 | . . 1 1 . . 1 . . . . . Utility 6 | . . . 1 . 2 1 . . . 2 . Weapon 1 | . . 1 . . . . . . . . . Parts Attached 137 | 7 8 12 8 30 11 14 15 8 17 3 4 Power 16 | 1 2 2 . 1 1 3 3 2 1 . . Engine 12 | 1 2 2 . . . 2 3 2 . . . Core 4 | . . . . 1 1 1 . . 1 . . Reactor . | . . . . . . . . . . . . Propulsion 53 | 2 2 4 2 12 3 7 4 3 11 1 2 Treads 4 | . . . 1 3 . . . . . . . Leg 11 | 2 2 . . 7 . . . . . . . Wheel 2 | . . . 1 1 . . . . . . . Hover 13 | . . . . 1 . 1 . . 8 1 2 Flight 23 | . . 4 . . 3 6 4 3 3 . . Utility 28 | 1 1 1 3 6 5 2 4 . 3 2 . Device 7 | . . . 1 2 1 1 2 . . . . Storage 5 | 1 . 1 1 1 . 1 . . . . . Processor 6 | . 1 . . 1 2 . 2 . . . . Hackware 7 | . . . . . 2 . . . 3 2 . Protection 3 | . . . 1 2 . . . . . . . Artifact . | . . . . . . . . . . . . Weapon 40 | 3 3 5 3 11 2 2 4 3 2 . 2 Energy Gun 10 | 2 3 1 . 4 . . . . . . . Energy Cannon . | . . . . . . . . . . . . Ballistic Gun 11 | 1 . 3 2 3 . . 1 1 . . . Ballistic Cannon 1 | . . . 1 . . . . . . . . Launcher 6 | . . . . 1 1 . 2 1 . . 1 Special Weapon . | . . . . . . . . . . . . Impact Weapon 4 | . . 1 . 3 . . . . . . . Slashing Weapon 7 | . . . . . 1 2 1 1 2 . . Piercing Weapon 1 | . . . . . . . . . . . 1 Special Melee Weapon . | . . . . . . . . . . . . Unidentified Prototypes 7 | . . 1 . 4 1 1 . . . . . Corrupted Parts 1 | . . . . . . . . . 1 . . System Corruption 8 | . . . . . . . . . 8 . . Parts Lost 43 | . 1 5 1 3 3 . 8 5 2 . 15 Power 5 | . 1 . . . . . 2 1 . . 1 Propulsion 22 | . . 4 . 1 2 . 4 3 2 . 6 Utility 9 | . . . . 2 . . 2 . . . 5 Weapon 7 | . . 1 1 . 1 . . 1 . . 3 Highest Loss Streak 10 | . 1 5 1 2 2 . 3 5 1 . 10 To Critical Strikes 1 | . . . . . . . . 1 . . . Average Slot Usage (%) 82 | . 85 80 51 95 91 81 79 80 83 88 68 Engine 4 | . 10 11 9 3 . . 5 6 2 . . Core 2 | . . . . 6 7 5 . . 3 5 2 Treads 2 | . . . 5 12 . . . . . . . Leg 8 | . 27 13 . 13 23 . . . . . . Wheel 1 | . . . 1 6 . . . . . . . Hover 3 | . . . . . . . . . 10 29 17 Flight 13 | . . 11 . . 5 30 33 33 20 . . Device 3 | . . . 4 8 9 4 . . . . . Storage 6 | . 14 6 3 9 5 5 6 6 6 5 5 Processor 10 | . 4 11 5 5 10 14 15 20 15 11 8 Hackware 8 | . . . . . 7 13 13 13 17 29 28 Energy Gun 6 | . 27 7 . 15 11 . . . . . . Ballistic Gun 4 | . . 19 10 9 5 . . . . . . Slashing Weapon 1 | . . . . . 1 2 2 . 5 5 2 Naked Turns . | . . . . . . . . . . . . Heaviest Build 37 | 14 14 25 33 35 37 34 33 30 33 30 33 Greatest Support 50 | 20 20 20 20 50 50 30 30 30 45 47 47 Greatest Overweight (x) 5 | . 1 3 5 3 5 1 1 . 1 . 2 Average Overweight (x) . | . . . 2 1 . . . . . . . Largest Inventory Capacity 15 | 8 8 10 10 15 15 15 15 15 15 15 15 Average Capacity 12 | 6 8 7 6 10 12 13 15 15 15 15 14 Most Carried 15 | 3 8 10 5 15 15 15 15 15 15 15 15 Average Carried 10 | 1 4 6 3 9 12 12 12 12 14 14 13 Final Capacity 15 | 8 8 5 10 15 5 15 15 15 15 15 5 Final Carried 15 | 3 8 4 5 15 5 14 15 15 15 15 5 Class Distribution -------------------- 19% | Mutant 17% | Commander-Sprinter 17% | Scavenger-Gunner 9% | Hacker-Sprinter 8% | Wizard-Mutant 8% | Hacker-Mutant 7% | Scavenger-Tank 5% | Gunner 3% | Hacker-Scout Dominant Class ---------------- Mutant | -10/Materials Gunner | -9/Materials Mutant | -8/Materials Scavenger-Gunner | -8/Storage Scavenger-Gunner | -7/Factory Hacker-Sprinter | -6/Factory Commander-Sprinter | -6/Extension Hacker-Sprinter | -6/Cetus Hacker-Mutant | -6/Archives Wizard-Mutant | -5/Factory Wizard-Mutant | -5/Upper Caves Resources | -11 -10 -9 -8 -8 -7 -6 -6 -6 -6 -5 -5 ----------- Run | Scr Mat Mat Mat Sto Fac Fac Ext Cet Arc Fac Upp Matter Collected 2307 | 211 66 382 173 510 141 126 404 100 177 . 17 Remotely . | . . . . . . . . . . . . Salvage Created 2506 | . 94 190 170 998 262 . 452 . 340 . . Parts 141 | . 10 14 11 39 18 . 16 . 33 . . Haulers Intercepted 3 | . . 1 . 1 1 . . . . . . Recyclers Shooed . | . . . . . . . . . . . . Parts Field Recycled . | . . . . . . . . . . . . Retrieved Matter . | . . . . . . . . . . . . Parts Self-Destructed 2 | . . . . . . . . . . . 2 Prevented . | . . . . . . . . . . . . Kills | -11 -10 -9 -8 -8 -7 -6 -6 -6 -6 -5 -5 ------- Run | Scr Mat Mat Mat Sto Fac Fac Ext Cet Arc Fac Upp Combat Hostiles Destroyed 46 | . 4 9 3 17 5 . 7 . 1 . . Melee 5 | . . . . . . . 4 . 1 . . Guns 32 | . 1 9 1 16 5 . . . . . . Cannons 2 | . . . 2 . . . . . . . . AOE 6 | . 3 . . . . . 3 . . . . Classes Destroyed 14 | . 3 1 2 4 2 . 2 . . . . Worker 1 | . . . . 1 . . . . . . . Builder 1 | . . . . . 1 . . . . . . Tunneler 1 | . . . 1 . . . . . . . . Hauler 3 | . . 1 . 1 1 . . . . . . Recycler 1 | . . . . . . . 1 . . . . Operator 12 | . 1 1 . 1 . . 1 . 8 . . Watcher 1 | . . . . 1 . . . . . . . Swarmer 15 | . 3 9 . . 3 . . . . . . Grunt 13 | . 1 . . 10 . . 2 . . . . Brawler 1 | . . . . 1 . . . . . . . Sentry 12 | . . . 3 5 1 . 2 . 1 . . Hunter 1 | . . . . 1 . . . . . . . Programmer 1 | . . . . . 1 . . . . . . Behemoth 2 | . . . . . . . 2 . . . . Thug 1 | . . . . . . . 1 . . . . Best Kill Streak 4 | . 3 4 3 4 4 . 4 . 4 . . Combat Bots Only 3 | . 3 3 1 3 3 . 3 . 1 . . Max Kills in Single Turn 3 | . 3 2 1 1 1 . 1 . 1 . . Gunslinging . | . . . . . . . . . . . . Exploded 3 | . 3 . . . . . 1 . . . . Melee 1 | . . . . . . . 1 . 1 . . Uniques/NPCs Destroyed . | . . . . . . . . . . . . Combat | -11 -10 -9 -8 -8 -7 -6 -6 -6 -6 -5 -5 -------- Run | Scr Mat Mat Mat Sto Fac Fac Ext Cet Arc Fac Upp Damage Taken 5337 | . 122 565 194 743 513 91 582 386 139 72 1930 Core 1800 | . 10 182 89 97 104 26 142 122 19 . 1009 Absorbed by Shields 110 | . . . . . . . 14 96 . . . Core Remaining (%) 77 | 100 96 54 . 66 85 . . . 63 . . Volleys Fired 120 | . 6 26 5 48 17 . 15 3 . . . Largest 3 | . 2 3 3 3 3 . 1 1 . . . Hottest 135 | . 80 105 90 135 135 . 43 43 . . . Shots Fired 292 | . 12 63 12 141 46 . 15 3 . . . Gun 266 | . 12 63 7 136 46 . 2 . . . . Cannon 10 | . . . 5 5 . . . . . . . Launcher 16 | . . . . . . . 13 3 . . . Special . | . . . . . . . . . . . . Kinetic 138 | . . 52 12 55 17 . 2 . . . . Thermal 126 | . . 11 . 86 29 . . . . . . Explosive 16 | . . . . . . . 13 3 . . . Electromagnetic 12 | . 12 . . . . . . . . . . Robot Hit Streak 25 | . 3 8 7 16 14 . 25 6 . . . Robot Miss Streak 4 | . 2 3 1 4 4 . 1 . . . . Penetration Max . | . . . . . . . . . . . . Secondary Targets 7 | . . 2 . 3 2 . . . . . . Max Gunslinging Chain 1 | . . 1 . 1 1 . . . . . . Shots Hit Robots 210 | . 7 37 9 85 26 . 29 3 14 . . Core Hits 109 | . 5 13 6 37 10 . 20 9 9 . . Critical Kills . | . . . . . . . . . . . . Critical Parts Destroyed 1 | . . 1 . . . . . . . . . Critical Strikes 9 | . . 1 . 4 1 . 2 . 1 . . Burn 5 | . . . . 4 1 . . . . . . Destroy 1 | . . 1 . . . . . . . . . Sever 3 | . . . . . . . 2 . 1 . . Melee Attacks 58 | . . 3 . 1 2 4 21 1 19 2 5 Impact 4 | . . 3 . 1 . . . . . . . Slashing 51 | . . . . . 2 4 21 1 19 2 2 Piercing 3 | . . . . . . . . . . . 3 Sneak Attacks 14 | . . . . . . . 4 . 10 . . Combat Hostiles 1 | . . . . . . . 1 . . . . Follow-up Attacks . | . . . . . . . . . . . . Damage Inflicted 6081 | . 258 503 158 1545 533 . 1657 369 1058 . . Guns 2768 | . 91 503 82 1527 533 . 32 . . . . Cannons 94 | . . . 76 18 . . . . . . . Explosions 1398 | . 167 . . . . . 862 369 . . . Melee 1821 | . . . . . . . 763 . 1058 . . Ramming . | . . . . . . . . . . . . Kinetic 1171 | . . 371 158 426 184 . 32 . . . . Thermal 1767 | . 167 132 . 1119 349 . . . . . . Explosive 1231 | . . . . . . . 862 369 . . . Electromagnetic 91 | . 91 . . . . . . . . . . Impact . | . . . . . . . . . . . . Slashing 1821 | . . . . . . . 763 . 1058 . . Piercing . | . . . . . . . . . . . . Highest Corruption 10 | . . . . . 1 . . 1 9 1 10 Average Corruption 3 | . . . . . 1 . . 1 7 1 5 Corruption Purged . | . . . . . . . . . . . . Corruption Blocked . | . . . . . . . . . . . . Effects 20 | . . . . . 2 . . . 12 1 5 Message Errors 7 | . . . . . 1 . . . 5 1 . Matter Fused 8 | . . . . . . . . . 4 . 4 Heat Flow Errors 2 | . . . . . 1 . . . 1 . . Energy Discharges 3 | . . . . . . . . . 2 . 1 Overload Shots . | . . . . . . . . . . . . Overflow Damage 263 | . . . . . . . 144 . 119 . . Projectiles . | . . . . . . . . . . . . Explosions 28 | . . . . . . . 28 . . . . Melee 235 | . . . . . . . 116 . 119 . . Knockbacks . | . . . . . . . . . . . . Impact . | . . . . . . . . . . . . Kinetic . | . . . . . . . . . . . . Secondary . | . . . . . . . . . . . . Self-Inflicted Damage 40 | . 40 . . . . . . . . . . Shots 1 | . 1 . . . . . . . . . . Rammed . | . . . . . . . . . . . . Targets Rammed . | . . . . . . . . . . . . Kicked . | . . . . . . . . . . . . Crushed . | . . . . . . . . . . . . Highest Temperature 450 | . 48 193 3 450 139 12 15 12 216 38 6 Average Temperature 79 | . 21 69 3 115 49 10 6 7 112 20 4 Received Heat Transfer 1199 | . 6 120 63 279 87 30 225 17 9 63 300 Effects 2 | . . . . 2 . . . . . . . Shutdowns 1 | . . . . 1 . . . . . . . Energy Bleed 1 | . . . . 1 . . . . . . . Siege Activations . | . . . . . . . . . . . . Robots Corrupted . | . . . . . . . . . . . . Combat Hostiles . | . . . . . . . . . . . . Parts Fried 1 | . . . . . . . 1 . . . . Impact Corruptions . | . . . . . . . . . . . . Robots Melted 1 | . . . . 1 . . . . . . . Combat Hostiles 1 | . . . . 1 . . . . . . . Parts Melted 13 | . . . . 11 2 . . . . . . Heat Transferred 3678 | . 200 296 . 2479 703 . . . . . . Parts Sabotaged . | . . . . . . . . . . . . Parts Stolen . | . . . . . . . . . . . . Parts Stripped . | . . . . . . . . . . . . Power Chain Reactions 2 | . 2 . . . . . . . . . . Missiles Intercepted . | . . . . . . . . . . . . Alert | -11 -10 -9 -8 -8 -7 -6 -6 -6 -6 -5 -5 ------- Run | Scr Mat Mat Mat Sto Fac Fac Ext Cet Arc Fac Upp Peak Influence 612 | . 224 479 245 450 258 102 384 612 447 252 . Initial 239 | . . 90 102 103 204 41 49 130 239 156 . Average 210 | . 149 240 142 295 172 84 152 336 398 129 . Maximum Alert Level 2 | . 1 2 1 2 1 . 1 2 2 1 . Low Security (%) 47 | 100 47 34 87 16 45 100 71 12 . 88 . Level 1 40 | . 52 48 12 62 54 . 28 60 32 11 . Level 2 12 | . . 16 . 21 . . . 27 67 . . Level 3 . | . . . . . . . . . . . . Level 4 . | . . . . . . . . . . . . Level 5 . | . . . . . . . . . . . . High Security . | . . . . . . . . . . . . Max Security . | . . . . . . . . . . . . Squads Dispatched 11 | . 1 1 . 2 3 1 2 . . 1 . Investigation 4 | . . . . . 1 1 1 . . 1 . Extermination 1 | . . . . . 1 . . . . . . Reinforcement 6 | . 1 1 . 2 1 . 1 . . . . Assault . | . . . . . . . . . . . . Garrison . | . . . . . . . . . . . . Intercept . | . . . . . . . . . . . . Searches Triggered . | . . . . . . . . . . . . Construction Impeded . | . . . . . . . . . . . . Haulers Reinforced 1 | . . . . . 1 . . . . . . Active Scanning Responses . | . . . . . . . . . . . . Cargo Convoy Interrupts . | . . . . . . . . . . . . Stealth | -11 -10 -9 -8 -8 -7 -6 -6 -6 -6 -5 -5 --------- Run | Scr Mat Mat Mat Sto Fac Fac Ext Cet Arc Fac Upp Distress Signals 7 | . 1 1 . 2 1 . . 2 . . . Communications Jammed . | . . . . . . . . . . . . Distress Signals . | . . . . . . . . . . . . Times Spotted 146 | . 10 28 6 23 11 1 23 14 8 13 9 Peak Tracking Total 9 | . 3 8 3 3 5 1 3 5 2 9 7 Tactical Retreats 13 | . . 5 . . 2 1 1 . . 2 2 Traps | -11 -10 -9 -8 -8 -7 -6 -6 -6 -6 -5 -5 ------- Run | Scr Mat Mat Mat Sto Fac Fac Ext Cet Arc Fac Upp Traps Triggered 9 | . 5 . . 2 . . 2 . . . . Indirectly . | . . . . . . . . . . . . Trap Hack Attempts . | . . . . . . . . . . . . Triggered . | . . . . . . . . . . . . Disarmed . | . . . . . . . . . . . . Reprogrammed . | . . . . . . . . . . . . Reused . | . . . . . . . . . . . . Traps Extracted . | . . . . . . . . . . . . Installed . | . . . . . . . . . . . . Triggered . | . . . . . . . . . . . . Machines | -11 -10 -9 -8 -8 -7 -6 -6 -6 -6 -5 -5 ---------- Run | Scr Mat Mat Mat Sto Fac Fac Ext Cet Arc Fac Upp Machines Disabled 14 | . 2 . . 5 . . 4 3 . . . Max in Single Turn 2 | . 2 . . 1 . . 1 1 . . . Garrison Access 2 | . . . . 1 1 . . . . . . Machines Sabotaged . | . . . . . . . . . . . . Overloaded Fab Kills 1 | . . . . . . . . . . 1 . Hacking | -11 -10 -9 -8 -8 -7 -6 -6 -6 -6 -5 -5 --------- Run | Scr Mat Mat Mat Sto Fac Fac Ext Cet Arc Fac Upp Machines Accessed 38 | . 3 3 2 3 7 4 9 1 . 5 1 Terminals 31 | . 3 3 2 2 5 3 9 1 . 3 . Fabricators 4 | . . . . . 1 1 . . . 2 . Repair Stations . | . . . . . . . . . . . . Recycling Units . | . . . . . . . . . . . . Scanalyzers . | . . . . . . . . . . . . Garrison Access 2 | . . . . 1 1 . . . . . . Total Hacks 121 | . 12 7 6 6 23 9 33 3 . 21 1 Successful 67 | . 9 1 3 2 9 6 18 1 . 17 1 Failed 54 | . 3 6 3 4 14 3 15 2 . 4 . Catastrophic 12 | . . 1 2 2 2 1 4 . . . . Database Lockouts . | . . . . . . . . . . . . Manual 74 | . 9 7 6 1 11 4 23 1 1 11 . Terminals 105 | . 12 7 6 3 17 6 33 3 . 18 . Fabricators 8 | . . . . . 2 3 . . . 3 . Repair Stations . | . . . . . . . . . . . . Recycling Units . | . . . . . . . . . . . . Scanalyzers . | . . . . . . . . . . . . Garrison Access 7 | . . . . 3 4 . . . . . . Terminal Hacks 42 | . 5 . 1 1 5 3 13 1 . 12 1 Record 1 | . . . . . . . . . . 1 . Part Schematic 7 | . . . . . 1 . 1 . . 5 . Robot Analysis 2 | . 2 . . . . . . . . . . Prototype ID Bank 2 | . . . . . . 1 1 . . . . Open Door 8 | . . . . 1 . 1 4 1 . . 1 Level Access Points 1 | . . . . . . . . . . 1 . Branch Access Points 2 | . . . . . 1 1 . . . . . Terminal Index 3 | . 1 . . . . . 1 . . 1 . Unreport Threat 9 | . . . . . 1 . 5 . . 3 . Locate Traps 1 | . . . . . 1 . . . . . . Zone Layout 6 | . 2 . 1 . 1 . 1 . . 1 . Fabricator Hacks 4 | . . . . . 1 1 . . . 2 . Network Status 2 | . . . . . 1 . . . . 1 . Load Schematic 2 | . . . . . . 1 . . . 1 . Repair Station Hacks . | . . . . . . . . . . . . Recycling Unit Hacks . | . . . . . . . . . . . . Scanalyzer . | . . . . . . . . . . . . Garrison Access Hacks 2 | . . . . 1 1 . . . . . . Seal Access 2 | . . . . 1 1 . . . . . . Unauthorized Hacks 19 | . 4 1 2 . 2 2 5 . . 3 . Terminals 17 | . 4 1 2 . 2 1 5 . . 2 . Assimilate 2 | . . . . . . . 1 . . 1 . Botnet 11 | . 3 1 1 . 1 1 3 . . 1 . Operators 4 | . 1 . 1 . 1 . 1 . . . . Fabricators 2 | . . . . . . 1 . . . 1 . Overload 1 | . . . . . . . . . . 1 . Recompile 1 | . . . . . . 1 . . . . . Repair Stations . | . . . . . . . . . . . . Recycling Units . | . . . . . . . . . . . . Scanalyzers . | . . . . . . . . . . . . Garrison Access . | . . . . . . . . . . . . Data Cores Recovered . | . . . . . . . . . . . . Used . | . . . . . . . . . . . . Hacking Detections 29 | . 3 3 2 2 6 2 8 . . 3 . Full Trace Events 1 | . . . . . 1 . . . . . . Feedback Events . | . . . . . . . . . . . . Feedback Blocked . | . . . . . . . . . . . . Robot Schematics Acquired . | . . . . . . . . . . . . Robots Built . | . . . . . . . . . . . . Authchips . | . . . . . . . . . . . . Time . | . . . . . . . . . . . . Total Robot Build Rating . | . . . . . . . . . . . . Part Schematics Acquired 7 | . . . . . 1 . 1 . . 5 . Parts Built . | . . . . . . . . . . . . Authchips . | . . . . . . . . . . . . Time . | . . . . . . . . . . . . Total Part Build Rating . | . . . . . . . . . . . . Parts Repaired . | . . . . . . . . . . . . Time . | . . . . . . . . . . . . Parts Recycled . | . . . . . . . . . . . . Recycled Matter . | . . . . . . . . . . . . Retrieved Matter . | . . . . . . . . . . . . Retrieved Components . | . . . . . . . . . . . . Parts Scanalyzed . | . . . . . . . . . . . . Part Schematics Acquired . | . . . . . . . . . . . . Parts Damaged . | . . . . . . . . . . . . Bothacking | -11 -10 -9 -8 -8 -7 -6 -6 -6 -6 -5 -5 ------------ Run | Scr Mat Mat Mat Sto Fac Fac Ext Cet Arc Fac Upp Used RIF Installer . | . . . . . . . . . . . . Robots Hacked . | . . . . . . . . . . . . Non-combat . | . . . . . . . . . . . . Combat . | . . . . . . . . . . . . Robot Hacks Applied . | . . . . . . . . . . . . Relay Couplers Released . | . . . . . . . . . . . . Fabnet Peak Effective % . | . . . . . . . . . . . . Robots Rewired 12 | . . . . . 3 . 9 . . . . Allies Hacked . | . . . . . . . . . . . . Hacks Repelled . | . . . . . . . . . . . . Allies | -11 -10 -9 -8 -8 -7 -6 -6 -6 -6 -5 -5 -------- Run | Scr Mat Mat Mat Sto Fac Fac Ext Cet Arc Fac Upp Total Allies 23 | . . . . . 3 . 14 5 . 1 . Largest Group 11 | . . . . . 3 . 10 11 4 1 . Highest-Rated Group 806 | . . . . . 100 . 452 806 432 26 . Highest-Rated Ally 159 | . . . . . 40 . 159 159 144 26 . Total Orders . | . . . . . . . . . . . . Ally Attacks 242 | . . . . . 3 . 113 94 32 . . Total Damage 6591 | . . . . . 96 . 2571 2508 1416 . . Kills 40 | . . . . . . . 19 17 4 . . Allies Corrupted . | . . . . . . . . . . . . Allies Melted . | . . . . . . . . . . . . Intel | -11 -10 -9 -8 -8 -7 -6 -6 -6 -6 -5 -5 ------- Run | Scr Mat Mat Mat Sto Fac Fac Ext Cet Arc Fac Upp Robot Analysis Total 2 | . 2 . . . . . . . . . . Derelict Logs Recovered 1 | . . . . . . . . . . . 1 Drone Launches . | . . . . . . . . . . . . Drone Recoveries . | . . . . . . . . . . . . Exploration | -11 -10 -9 -8 -8 -7 -6 -6 -6 -6 -5 -5 ------------- Run | Scr Mat Mat Mat Sto Fac Fac Ext Cet Arc Fac Upp Turns Passed 4345 | 63 338 430 301 692 483 154 900 258 300 177 249 Spaces Moved 4201 | 46 248 366 133 340 432 389 1082 201 254 353 357 Core 59 | 6 . 3 50 . . . . . . . . Treads 102 | . . . 52 50 . . . . . . . Legs 811 | 40 248 145 . 126 252 . . . . . . Wheels 195 | . . . 31 164 . . . . . . . Hover 823 | . . . . . . . . . 113 353 357 Flight 2211 | . . 218 . . 180 389 1082 201 141 . . Fastest Speed 25 | 50 120 34 125 110 29 25 26 26 26 44 46 Average Speed 65 | 110 120 84 180 138 85 26 26 26 68 45 64 Slowest Speed 370 | 120 190 200 300 260 370 105 109 26 116 46 150 Overloaded Moves . | . . . . . . . . . . . . Propulsion Burnouts . | . . . . . . . . . . . . Robots Hopped 15 | . . 7 . . 4 2 2 . . . . Cave-ins Triggered 1 | . . . . . . . . . . . 1 Exploration Rate (%) 44 | 5 48 36 13 54 18 12 93 86 94 12 61 Regions Visited 11 Branch Regions 5 Pre-discovered Areas . | . . . . . . . . . . . . Known Exits Taken 7 | . . . . 1 1 1 1 1 1 1 . Unknown Exits Taken 4 | 1 1 1 1 . . . . . . . . Scrap Searched 1 | . . . . . . . . . . . 1 Spaces Dug 20 | . . 3 . 1 2 4 3 . . 2 5 Terrain Destroyed 135 | . 5 3 . 1 2 4 66 47 . 2 5 Melee 20 | . . 3 . 1 2 4 3 . . 2 5 Projectile . | . . . . . . . . . . . . AOE 115 | . 5 . . . . . 63 47 . . . Terrain Rammed . | . . . . . . . . . . . . Walls Destroyed . | . . . . . . . . . . . . Machines Disabled . | . . . . . . . . . . . . Actions | -11 -10 -9 -8 -8 -7 -6 -6 -6 -6 -5 -5 --------- Run | Scr Mat Mat Mat Sto Fac Fac Ext Cet Arc Fac Upp Total 5471 | 55 271 427 181 465 510 431 1642 400 354 369 366 Wait 677 | . 5 4 31 12 . . 416 182 27 . . Move 4161 | 45 247 351 132 339 424 384 1077 200 253 352 357 Hop 14 | . . 7 . . 3 2 2 . . . . Pick Up 87 | 2 5 9 4 15 10 14 7 5 10 6 . Fast Attach 55 | 7 8 2 5 13 4 6 1 . 8 . 1 Attach 46 | . . 6 3 4 6 3 9 6 4 2 3 Detach 14 | 1 . 2 . 2 . 3 3 1 2 . . Swap 36 | . . 4 . 13 1 5 5 2 5 1 . Drop 78 | . . 13 1 18 14 10 . . 16 6 . Fire 120 | . 6 26 5 48 17 . 15 3 . . . Melee 58 | . . 3 . 1 2 4 21 1 19 2 5 Ram . | . . . . . . . . . . . . Kick . | . . . . . . . . . . . . Crush . | . . . . . . . . . . . . Escape Stasis 36 | . . . . . . . 36 . . . . Rewire 89 | . . . . . 29 . 50 . 10 . . Trap . | . . . . . . . . . . . . Miscellaneous . | . . . . . . . . . . . . Route ------- -11/Scrapyard -10/Materials (discovered 2 exits: *Mat / [*Min]) -9/Materials -8/Materials -8/Storage -7/Factory (discovered 3 exits: *Fac / Low x2) -6/Factory (discovered 4 exits: *Low x2 / *Ext x2) -6/Extension (discovered 2 exits: *Fac / *Cet) -6/Cetus (discovered 2 exits: *Fac / *Arc) -6/Archives (discovered 3 exits: *Fac / *Hub x2) -5/Factory (discovered 5 exits: Fac x4 / *Upp) -5/Upper Caves History --------- Turn | Location | Event 2 | -11/Scrapyard | Discovered new exit (range 16) 64 | -11/Scrapyard | Entered Materials 197 | -10/Materials | Discovered new exit (range 15) 310 | -10/Materials | Build established: Mutant 389 | -10/Materials | Discovered new exit (range 4) 402 | -10/Materials | Entered another Materials area 402 | -9/Materials | Evolved 2 slots: Propulsion x1, Weapon x1 806 | -9/Materials | Discovered new exit (range 14) 832 | -9/Materials | Entered another Materials area 832 | -8/Materials | Evolved 2 slots: Propulsion x1, Utility x1 858 | -8/Materials | Lost 5 parts (4n1w) 1045 | -8/Materials | Discovered new exit (range 16) 1133 | -8/Materials | Entered Storage 1388 | -8/Storage | Build established: Scavenger-Tank 1713 | -8/Storage | Build established: Scavenger-Gunner 1783 | -8/Storage | Discovered new exit (range 15) 1824 | -8/Storage | Identified exit to Factory 1825 | -8/Storage | Entered Factory 1825 | -7/Factory | Evolved 2 slots: Utility x2 2231 | -7/Factory | Identified exit to Lower Caves 2290 | -7/Factory | Discovered new exit (range 18) 2307 | -7/Factory | Identified exit to Factory 2308 | -7/Factory | Entered another Factory area 2308 | -6/Factory | Evolved 2 slots: Propulsion x1, Utility x1 2312 | -6/Factory | Identified exit to Lower Caves 2312 | -6/Factory | Identified exit to Extension 2462 | -6/Factory | Entered Extension 2483 | -6/Extension | Rescued a captive Derelict 2483 | -6/Extension | Rescued a captive Derelict 2623 | -6/Extension | Rescued A7 2624 | -6/Extension | Lost 3 parts (1p1n1u) 2637 | -6/Extension | Rescued a captive Derelict 2873 | -6/Extension | Spotted B-75 Beast 2910 | -6/Extension | Destroyed B-75 Beast 2923 | -6/Extension | Spotted B-75 Beast 2935 | -6/Extension | Destroyed B-75 Beast 2961 | -6/Extension | Build established: Commander-Sprinter 2965 | -6/Extension | Lost 3 parts (1p2n) 3012 | -6/Extension | Discovered new exit (range 18) 3012 | -6/Extension | Discovered new exit (range 16) 3016 | -6/Extension | Identified exit to Cetus 3054 | -6/Extension | Rescued a captive Derelict 3056 | -6/Extension | Rescued a captive Derelict 3362 | -6/Extension | Entered Cetus 3362 | -6/Cetus | Accompanied by 8 allies (A7) 3365 | -6/Cetus | Spotted Cetus Guard 3365 | -6/Cetus | Spotted Cetus Guard 3365 | -6/Cetus | Spotted Cetus Guard 3365 | -6/Cetus | Spotted Cetus Guard 3367 | -6/Cetus | Acquired a Cetus Manufacturing Module code from A7 3384 | -6/Cetus | Allies destroyed Cetus Guard 3393 | -6/Cetus | Allies destroyed Cetus Guard 3407 | -6/Cetus | Started Cetus Manufacturing Module 3414 | -6/Cetus | Lost 5 parts (1p3n1w) 3416 | -6/Cetus | Escorted A7 to Cetus Mainframe 3432 | -6/Cetus | Manufactured an Enhanced Grunt 3457 | -6/Cetus | Manufactured an Enhanced Grunt 3482 | -6/Cetus | Manufactured an Enhanced Grunt 3506 | -6/Cetus | Discovered new exit (range 21) 3507 | -6/Cetus | Manufactured an Enhanced Grunt 3532 | -6/Cetus | Manufactured an Enhanced Grunt 3539 | -6/Cetus | Spotted Cetus Guard 3540 | -6/Cetus | Spotted Cetus Guard 3548 | -6/Cetus | Cetus Manufacturing Module disabled 3554 | -6/Cetus | Spotted Cetus Guard 3557 | -6/Cetus | Spotted Cetus Guard 3559 | -6/Cetus | Allies destroyed Cetus Guard 3568 | -6/Cetus | Allies destroyed Cetus Guard 3568 | -6/Cetus | Allies destroyed Cetus Guard 3568 | -6/Cetus | Discovered new exit (range 22) 3574 | -6/Cetus | Allies destroyed Cetus Guard 3579 | -6/Cetus | Met Revision 17 3587 | -6/Cetus | Identified exit to Archives 3620 | -6/Cetus | Entered Archives 3620 | -6/Archives | Accompanied by 4 allies (A7) 3625 | -6/Archives | Received a hacking code to weaken MAIN.C 3646 | -6/Archives | Unable to access archive contents 3716 | -6/Archives | Discovered new exit (range 18) 3762 | -6/Archives | Discovered new exit (range 21) 3765 | -6/Archives | Discovered new exit (range 22) 3787 | -6/Archives | Identified exit to Hub_04(d) 3919 | -6/Archives | Identified exit to Factory 3920 | -6/Archives | Entered Factory 3920 | -5/Factory | Evolved 2 slots: Utility x2 3945 | -5/Factory | Identified exit to Factory 4092 | -5/Factory | Discovered new exit (range 10) 4096 | -5/Factory | Identified exit to Upper Caves 4097 | -5/Factory | Entered Upper Caves 4106 | -5/Upper Caves | Encountered a Warlord checkpoint 4135 | -5/Upper Caves | Learned Factory interactive machine intel 4228 | -5/Upper Caves | Crushed by falling debris 4228 | -5/Upper Caves | System corruption reached 10% 4246 | -5/Upper Caves | Build established: Wizard-Mutant 4264 | -5/Upper Caves | Lost 10 parts (1p6n1u2w) 4320 | -5/Upper Caves | Core integrity fell below 50% 4341 | -5/Upper Caves | Core integrity fell below 20% 4346 | -5/Upper Caves | Destroyed by H-66 Slayer with Heavy Assault Rifle Last Messages --------------- >>Open Door Sealed Heavy Doors opened. 04324_ Slug penetrates Wall. 04333_ Slug penetrates G-50 Soldier. 04334_ Slug penetrates Wall. 04334_ Imp. System Shield destroyed. 04335_ Slug penetrates Wall. 04336_ Penetrated by Slug. 04336_ Smartbomb Launcher destroyed. 04338_ Penetrated by Slug. 04339_ Slug penetrates Wall. 04341_ Penetrated by Slug. 04343_ Hvy. Laser fries itself beyond repair. 04343_ Carbon-fiber Leg fries itself beyond repair. 04343_ Penetrated by Slug. 04343_ Lrg. Storage Unit destroyed. 04343_ Penetrated by Slug. 04343_ Imp. Hacking Suite destroyed. 04343_ Penetrated by Slug. 04345_ System corrupted: Matter fused (-10). Map ----- +----------------------------------------------------+ | ?????????????????????????????????????????????????? | | ?????????????????????????????????????????????????? | | ?????????????????????????????????????????????????? | | ?????????????????????????????????????????????????? | | ?????????????????????????????????????????????????? | | ?????????????????????????????????????????????????? | | ????????????????????????????????????????? ???????? | | ????????????????????????????????????????? ??????? | | ????????????????????????????????????????? ??????? | | ?????????????????????????????????????????? #?????? | | ????????????????????????????? #??????? ?????? | | ??????????????????????????? ?????? #????? | | ??????????????????????????? ?????? ##??? | | ??????????????????????????# ??????# ##?? | | ?????????????????????????## ?????## ##? | | ????????????????????????## ?????## ## | | ???????????????????###### ## ??????# # | | ???????????????????# ## #???????# | | ???????????????????# ## #???????# | | ???????????????????# #????????# | | ????????????????????# #????????## | | ????????????????????# #?????##### | | ????????????????????# #??????# #### | | ????????????????????# #??????# #?## | | ?????????????????????# ######## #?# | | ?????????????????????# @ ## #?# | | ????????????????????## ### #?# | | ?????????????########hh ##?# ##?### | | ?????????????# % =*= ###??## ### #????# | | ???????#!??### # ! gg!h ##?????#####?## #???# | | ???????# #X # h ###?????????????## #???? | | ???????#]/ ## ##???????????????# #??? | | ???????#]/ #### #??????????????? ?? | | ???????###??# #??????????????? | | ????????????## #?????????????? | | ?????????????## #?????????????? | | ??????????????## #????????????## ## | | ???????????????## ######?????????????## #### ##? | | ????????????????####???????????????????####???##?? | | ?????????????????????????????????????????????????? | | ?????????????????????????????????????????????????? | | ?????????????????????????????????????????????????? | | ?????????????????????????????????????????????????? | | ?????????????????????????????????????????????????? | | ?????????????????????????????????????????????????? | | ?????????????????????????????????????????????????? | | ?????????????????????????????????????????????????? | | ?????????????????????????????????????????????????? | | ?????????????????????????????????????????????????? | | ?????????????????????????????????????????????????? | +----------------------------------------------------+ Best States ------------- Heat Dissipation 62 Energy Generation 18 Energy Capacity 300 Matter Stores 300 Matter Capacity 300 Sight Range 22 Robot Scan Range 16 Terrain Scan Density 10 Armor Coverage 150 Evasion (%) 72 Targeting Accuracy 8 Recoil Reduction 3 Offensive Hacking 36 Defensive Hacking 24 Authchip Count 1 Item Schematics ----------------- Hacking Suite | -7/Factory | Hacked Imp. Hacking Suite | -6/Extension | Hacked Tri-rail Accelerator | -5/Factory | Hacked Biometal Medium Treads | -5/Factory | Hacked Adv. Weapon Cycler | -5/Factory | Hacked Nuclear Pulse Thruster | -5/Factory | Hacked Field Propulsion Drive | -5/Factory | Hacked Robot Schematics ------------------ None Fabricated ------------ Nothing Alien Tech Used ----------------- None Achievements -------------- Main Advantage Challenges ------------ None Game ------ Seed ChromaticDrainedRail Manual? 0 Play Time 00:57:11 Cumulative 118.2 hours Start 2022.12.02 @ 22:02:40 End 2022.12.02 @ 22:57:06 Sessions 1 Manual Loads 0 Difficulty Rogue Special Mode None Game No. 211 Rogue 211 Adventurer 0 Explorer 0 Win Type - Total 2 Types 1/0/1/0/0/0/0/0/0 Lore% 63 Gallery% 71 Achievement% 52 Wizard Run 0 Options --------- ASCII 0 Keyboard 0 Movement Mouse Keybinds 0 Fullscreen 1 Font 18/SmallcapsGlow Map View 76x50 Tactical HUD 1 Map Filters NONE Filters NONE Steam 1 RUN: 99611fdb-ec40-4c4a-9a22-b3fc362e4941